Cogmind - Beta 14 @@@ ROGUE MODE // 2024.08.24 @ 03:55:51 // Halloween2019/Abominations Player: Trione Result: Destroyed by Lesser Abomination with Etherial Claws Performance ------------- Evolutions (0) 0 Regions Visited (1) 200 Robots Destroyed (10) 50 Value Destroyed (383) 383 Prototype IDs (0) 0 Alien Tech Used (0) 0 Bonus (0) 0 TOTAL SCORE: 633 Bonus ------- None Cogmind --------- Core Integrity 0/250 Matter 392/400 Energy 125/125 System Corruption 0% Temperature Cool (40) Movement Rolling (100) Location -10/Materials Parts ------- > --- POWER (1) -------- Light Ion Engine > --- PROPULSION (2) --- Light Treads Compact Wheel > --- UTILITY (2) ------ Small Storage Unit Medium Matter Pod > --- WEAPON (2) ------- Small Laser Light Assault Rifle > --- INVENTORY (8) ---- Light Treads Aluminum Leg Aluminum Leg Compact Wheel Light Assault Rifle Light Assault Rifle Peak State ------------ > --- POWER ------------ Ion Engine > --- PROPULSION ------- Wheel Compact Wheel > --- UTILITY ---------- Small Storage Unit Medium Matter Pod > --- WEAPON ----------- Light Assault Rifle Light Assault Rifle > --- INVENTORY -------- Light Ion Engine Light Treads Light Treads Aluminum Leg Aluminum Leg Light Assault Rifle [Rating: 7] Favorites ----------- Power Ion Engine Engine Ion Engine Propulsion Compact Wheel Treads Light Treads Wheel Compact Wheel Utility Small Storage Unit Storage Small Storage Unit Weapon Light Assault Rifle Energy Gun Small Laser Ballistic Gun Light Assault Rifle Build | -11 -10 ------- Run | Yrd Mat Slots Evolved . | . . Power . | . . Propulsion . | . . Utility . | . . Weapon . | . . Parts Attached 11 | 6 5 Power 2 | 1 1 Engine 2 | 1 1 Core . | . . Reactor . | . . Propulsion 4 | 2 2 Treads 1 | . 1 Leg . | . . Wheel 3 | 2 1 Hover . | . . Flight . | . . Utility 2 | 1 1 Device . | . . Storage 2 | 1 1 Processor . | . . Hackware . | . . Protection . | . . Artifact . | . . Weapon 3 | 2 1 Energy Gun 1 | . 1 Energy Cannon . | . . Ballistic Gun 2 | 2 . Ballistic Cannon . | . . Launcher . | . . Special Weapon . | . . Impact Weapon . | . . Slashing Weapon . | . . Piercing Weapon . | . . Special Melee Weapon . | . . Unidentified Prototypes . | . . Parts Lost 2 | . 2 Power 1 | . 1 Propulsion 1 | . 1 Utility . | . . Weapon . | . . Highest Loss Streak 2 | . 2 To Critical Strikes . | . . Average Slot Usage (%) 96 | . 96 Engine 13 | . 13 Treads 8 | . 8 Wheel 19 | . 19 Storage 25 | . 25 Energy Gun 5 | . 5 Ballistic Gun 22 | . 22 Peak Build Rating 7 | 6 7 Average Rating 6 | 5 6 On Entrance 3 | . 6 Naked Turns . | . . Heaviest Build 14 | 12 14 Greatest Support 26 | 26 26 Greatest Overweight (x) . | . . Average Overweight (x) . | . . Largest Inventory Capacity 8 | 8 8 Average Capacity 7 | 7 8 Most Carried 6 | 6 6 Average Carried 5 | 4 5 Final Capacity 8 | 8 8 Final Carried 6 | 6 6 Class Distribution -------------------- 100% | Mutant Dominant Class ---------------- Mutant | -10/Materials Resources | -11 -10 ----------- Run | Yrd Mat Matter Collected 470 | 288 182 Remotely . | . . Salvage Created 448 | 105 343 Parts 21 | . 21 Haulers Intercepted 1 | . 1 Recyclers Shooed 1 | . 1 Parts Field Recycled . | . . Retrieved Matter . | . . Parts Self-Destructed . | . . Prevented . | . . Kills | -11 -10 ------- Run | Yrd Mat Combat Hostiles Destroyed 7 | . 7 Guns 7 | . 7 Classes Destroyed 5 | 2 3 Tunneler 1 | 1 . Hauler 1 | . 1 Recycler 1 | 1 . Grunt 2 | . 2 Abomination 5 | . 5 Best Kill Streak 3 | 1 3 Combat Bots Only 3 | . 3 Max Kills in Single Turn 1 | 1 1 Gunslinging . | . . Exploded . | . . Melee . | . . Uniques/NPCs Destroyed . | . . Combat | -11 -10 -------- Run | Yrd Mat Hostile Shots Fired 26 | . 26 Missed 5 | . 5 Damage Taken 642 | . 642 Core 252 | . 252 Absorbed by Shields . | . . Core Remaining (%) 100 | 100 . Volleys Fired 48 | 14 34 Largest 2 | 2 2 Hottest 60 | 40 60 Shots Fired 94 | 28 66 Gun 94 | 28 66 Cannon . | . . Launcher . | . . Special . | . . Kinetic 78 | 28 50 Thermal 16 | . 16 Explosive . | . . Electromagnetic . | . . Robot Hit Streak 23 | 6 23 Robot Miss Streak 5 | 2 5 Penetration Max . | . . Secondary Targets 2 | . 2 Max Gunslinging Chain 1 | . 1 Shots Hit Robots 70 | 20 50 Core Hits 26 | 5 21 Critical Kills . | . . Critical Parts Destroyed . | . . Critical Strikes . | . . Melee Attacks . | . . Impact . | . . Slashing . | . . Piercing . | . . Sneak Attacks . | . . Combat Hostiles . | . . Follow-up Attacks . | . . Damage Inflicted 636 | 159 477 Guns 636 | 159 477 Cannons . | . . Explosions . | . . Melee . | . . Ramming . | . . Kinetic 493 | 159 334 Thermal 143 | . 143 Explosive . | . . Electromagnetic . | . . Impact . | . . Slashing . | . . Piercing . | . . Highest Corruption . | . . Average Corruption . | . . Corruption Purged . | . . Corruption Blocked . | . . Overload Shots . | . . Overflow Damage . | . . Projectiles . | . . Explosions . | . . Melee . | . . Knockbacks . | . . Impact . | . . Kinetic . | . . Secondary . | . . Self-Inflicted Damage . | . . Shots . | . . Rammed . | . . Targets Rammed . | . . Kicked . | . . Crushed . | . . Highest Temperature 40 | . 40 Average Temperature 22 | . 22 Received Heat Transfer 6 | . 6 Siege Activations . | . . Robots Corrupted . | . . Combat Hostiles . | . . Parts Fried . | . . Impact Corruptions . | . . Robots Melted . | . . Combat Hostiles . | . . Parts Melted . | . . Heat Transferred 123 | . 123 Parts Sabotaged . | . . Parts Stolen . | . . Parts Stripped . | . . Power Chain Reactions . | . . Alert | -11 -10 ------- Run | Yrd Mat Peak Influence 61 | 10 61 Initial 6 | . 6 Average 18 | 2 26 Maximum Alert Level . | . . Low Security (%) 100 | 100 100 Level 1 . | . . Level 2 . | . . Level 3 . | . . Level 4 . | . . Level 5 . | . . High Security . | . . Max Security . | . . Squads Dispatched 2 | . 2 Investigation 2 | . 2 Extermination . | . . Reinforcement . | . . Assault . | . . Garrison . | . . Intercept . | . . Searches Triggered . | . . Construction Impeded . | . . Haulers Reinforced . | . . Active Scanning Responses . | . . Cargo Convoy Interrupts . | . . Stealth | -11 -10 --------- Run | Yrd Mat Distress Signals 1 | . 1 Communications Jammed . | . . Distress Signals . | . . Times Spotted 8 | . 8 Peak Tracking Total 3 | . 3 Tactical Retreats . | . . Traps | -11 -10 ------- Run | Yrd Mat Traps Triggered . | . . Indirectly . | . . Trap Hack Attempts . | . . Triggered . | . . Disarmed . | . . Reprogrammed . | . . Reused . | . . Traps Extracted . | . . Installed . | . . Triggered . | . . Machines | -11 -10 ---------- Run | Yrd Mat Machines Disabled . | . . Max in Single Turn . | . . Machines Repaired . | . . Machines Dismantled . | . . Machines Sabotaged . | . . Overloaded Fab Kills . | . . Hacking | -11 -10 --------- Run | Yrd Mat Machines Accessed 5 | . 5 Terminals 5 | . 5 Fabricators . | . . Repair Stations . | . . Recycling Units . | . . Scanalyzers . | . . Garrison Access . | . . Total Hacks 11 | . 11 Successful 4 | . 4 Failed 7 | . 7 Catastrophic 1 | . 1 Database Lockouts . | . . Manual 12 | . 12 Terminals 11 | . 11 Fabricators . | . . Repair Stations . | . . Recycling Units . | . . Scanalyzers . | . . Garrison Access . | . . Terminal Hacks . | . . Fabricator Hacks . | . . Repair Station Hacks . | . . Recycling Unit Hacks . | . . Scanalyzer . | . . Garrison Access Hacks . | . . Unauthorized Hacks 4 | . 4 Terminals 4 | . 4 Track 1 | . 1 Botnet 3 | . 3 Fabricators . | . . Repair Stations . | . . Recycling Units . | . . Scanalyzers . | . . Garrison Access . | . . Data Cores Recovered . | . . Used . | . . Hacking Detections 5 | . 5 Full Trace Events . | . . Feedback Events . | . . Feedback Blocked . | . . Robot Schematics Acquired . | . . Robots Built . | . . Authchips . | . . Time . | . . Total Robot Build Rating . | . . Part Schematics Acquired . | . . Parts Built . | . . Authchips . | . . Time . | . . Total Part Build Rating . | . . Parts Repaired . | . . Time . | . . Parts Recycled . | . . Recycled Matter . | . . Retrieved Matter . | . . Retrieved Components . | . . Parts Scanalyzed . | . . Part Schematics Acquired . | . . Parts Damaged . | . . Bothacking | -11 -10 ------------ Run | Yrd Mat Used RIF Installer . | . . Robots Hacked . | . . Non-combat . | . . Combat . | . . Robot Hacks Applied . | . . Relay Couplers Released . | . . Fabnet Peak Effective % . | . . Robots Rewired . | . . Allies Hacked . | . . Hacks Repelled . | . . Allies | -11 -10 -------- Run | Yrd Mat Total Allies . | . . Largest Group . | . . Highest-Rated Group . | . . Highest-Rated Ally . | . . Total Orders . | . . Ally Attacks . | . . Total Damage . | . . Kills . | . . Allies Corrupted . | . . Allies Melted . | . . Intel | -11 -10 ------- Run | Yrd Mat Robot Analysis Total . | . . Derelict Logs Recovered . | . . Drone Launches . | . . Drone Recoveries . | . . Exploration | -11 -10 ------------- Run | Yrd Mat Turns Passed 297 | 97 200 Spaces Moved 146 | 54 92 Core 5 | 5 . Treads . | . . Legs . | . . Wheels 141 | 49 92 Hover . | . . Flight . | . . Fastest Speed 50 | 50 90 Average Speed 90 | 85 93 Slowest Speed 100 | 90 100 Overloaded Moves . | . . Propulsion Burnouts . | . . Robots Hopped . | . . Cave-ins Triggered . | . . Exploration Rate (%) 16 | 4 29 Regions Visited 1 Branch Regions . Pre-discovered Areas . | . . Known Exits Taken . | . . Unknown Exits Taken 1 | 1 . Scrap Searched . | . . Spaces Dug . | . . Terrain Destroyed . | . . Melee . | . . Projectile . | . . AOE . | . . Terrain Rammed . | . . Walls Destroyed . | . . Machines Disabled . | . . Actions | -11 -10 --------- Run | Yrd Mat Total 227 | 79 148 Wait 16 | . 16 Move 145 | 53 92 Hop . | . . Pick Up 7 | 6 1 Fast Attach 7 | 6 1 Attach 2 | . 2 Detach . | . . Swap 2 | . 2 Drop . | . . Fire 48 | 14 34 Melee . | . . Ram . | . . Kick . | . . Crush . | . . Escape Stasis . | . . Rewire . | . . Trap . | . . Miscellaneous . | . . Route ------- -11/Scrapyard -10/Materials (discovered 1 exit: [*Mat]) History --------- Turn | Location | Event 8 | -11/Scrapyard | Discovered new exit (range 16) 98 | -11/Scrapyard | Entered Materials 117 | -10/Materials | Discovered new exit (range 16) 183 | -10/Materials | Core integrity fell below 50% 276 | -10/Materials | Discovered new exit (range 3) 298 | -10/Materials | Core integrity fell below 20% 298 | -10/Materials | Destroyed by Lesser Abomination with Etherial Claws Last Messages --------------- Terminal linked with 2 systems. Awaiting botnet instructions. 00263_ Acquired 33 matter. 00263_ R-06 Scavenger collects Aluminum Leg. 00276_ EXIT=FOUND 00277_ R-06 Scavenger inserts Ion Engine into recycling unit. 00280_ R-06 Scavenger inserts Wheel into recycling unit. 00283_ R-06 Scavenger inserts Aluminum Leg into recycling unit. 00284_ A-02 Transporter destroyed. 00286_ Lgt. Ion Engine springs to life within a quantum being. 00287_ Lesser Abomination absorbs Med. Storage Unit. 00288_ Lesser Abomination absorbs Wheel. 00289_ Lesser Abomination absorbs Med. Storage Unit, Med. Storage Unit. 00293_ Lesser Abomination destroyed. 00293_ Switching to secondary target: Lesser Abomination. 00296_ Lesser Abomination absorbs Wheel. 00297_ Critical hit (Intensify). Map ----- +----------------------------------------------------+ | ?????????????????????????#" % "#??????????????? | | ?????????????????????????#" "???????????????? | | ?????????????????????????#"" < #???????????????? | | ?????????????????????????#"| #???????????????? | | ?????????????????????????#" #???????????????? | | ?????????????????????????#""" %#???????????????? | | ????????????????????????##""" ########?????????? | | ?????????????????"???#"##"""" # #?????????? | | ???????????????? """ r!% #?????????? | | ???????????????? "Y" #= #?????????? | | ??????????????????"" #= #?????????? | | ??????????????????"" ## "T" #?????????? | | ?????????????????""" "" #?????????? | | ??????????????? """"#####?????????? | | ??????????????? ;"""""""""#???????????? | | ??????????????? ; T ##??????????? | | ??????????????? # !! "#??????????? | | ????????????????"""##### # !! "#??????????? | | ??????????????????" #; # % "#??????????? | | ??????????????????" ??## #"####;""""#??????????? | | ???????????????????????# # "#??????????? | | ???????????????????????# # """ """ ##??????????? | | ????????????"" ????????# ; """ """ #???????????? | | ?????????????? ;????# ; """ """ #???????????? | | ??????????;;;;;;;;#; # + #???????????? | | ??????????;;;;; ;;;;; @ # #???????????? | | ?????????? ; A< # #???????????? | | ?????????? ;; % ! # #???????????? | | ??????????? ;; ;;;;;;;############???????????? | | ??????????? #;; ;;#######??????????????????????? | | ?????????????# ; ;??????????????????????????????? | | ?????????????# ; ???????????????????????????????? | | ?????????????; ;?????????????????????????????????? | | ?????????????;;??????????????????????????????????? | | ?????????????????????????????????????????????????? | | ?????????????????????????????????????????????????? | | ?????????????????????????????????????????????????? | | ?????????????????????????????????????????????????? | | ?????????????????????????????????????????????????? | | ?????????????????????????????????????????????????? | | | | | | | | | | | | | | | | | | | | | +----------------------------------------------------+ Best States ------------- Heat Dissipation 25 Energy Generation 10 Energy Capacity 250 Matter Stores 400 Matter Capacity 400 Sight Range 16 Terrain Scan Density 10 Evasion (%) 42 Recoil Reduction 1 Item Schematics ----------------- None Robot Schematics ------------------ None Fabricated ------------ Nothing Alien Tech Used ----------------- None Achievements -------------- None Challenges ------------ None Game ------ Seed CarbideAccelerationBoregun Manual? 0 Play Time 00:07:21 Cumulative 1325.0 hours Start 2024.08.24 @ 03:44:33 End 2024.08.24 @ 03:55:51 Sessions 1 Manual Loads 0 Difficulty Rogue Special Mode Halloween2019/Abominations Game No. 467 Rogue 467 Adventurer 0 Explorer 0 Win Type - Total 30 Types 14/2/8/0/0/0/6/0/0 Lore% 74 Gallery% 89 Achievement% 85 Wizard Run 0 Options --------- Layout 1 ASCII 0 Keyboard 0 Movement Vi Keybinds 0 Fullscreen 0 Font 14/CherryShadow Map View 64x42 Zoom Use 0% Tactical HUD 1 Map Filters NONE Filters NONE Steam X RUN: 3807722c-a266-4928-8741-30ad1091b51d